bitfinex/quotes_BTCUSD_20250119
["timestamp","ask_amount","ask_price","bid_price","bid_amount"]
[1737313468842,0.00175142,105030.0,105020.0,1.36188053]
[1737313470518,0.00175142,105030.0,105020.0,1.57563686]
[1737313473940,0.00175142,105030.0,105020.0,1.31911115]
[1737313474699,0.00175142,105030.0,105020.0,1.23681975]
[1737313474895,0.00175142,105030.0,105020.0,1.15576545]
[1737313475542,0.00175142,105030.0,105020.0,1.15584852]
[1737313476375,0.00175142,105030.0,105020.0,1.45507816]
[1737313476688,0.00175142,105030.0,105020.0,1.46103351]
[1737313477159,0.00175142,105030.0,105020.0,1.54653037]
[1737313478199,0.00175142,105030.0,105020.0,1.33277404]
[1737313481094,0.00779142,105030.0,105020.0,1.33277404]
[1737313482530,0.15720943,105030.0,105020.0,1.33277404]
[1737313483026,0.15116943,105030.0,105020.0,1.33277404]
[1737313483780,0.15116943,105030.0,105020.0,1.37391974]
[1737313484559,0.15116943,105030.0,105020.0,1.33277404]
[1737313484803,0.15116943,105030.0,105020.0,1.54653037]
[1737313485198,0.15116943,105030.0,105020.0,1.58767607]
[1737313485403,0.15116943,105030.0,105020.0,1.50538467]
[1737313485576,0.15116943,105030.0,105020.0,1.5464473]
[1737313485785,0.15116943,105030.0,105020.0,1.46095044]
[1737313485983,0.00175142,105030.0,105020.0,1.46095044]
[1737313486189,0.15116943,105030.0,105020.0,1.46095044]
[1737313490806,0.15116943,105030.0,105020.0,1.33270917]
[1737313493187,0.1660037,105030.0,105020.0,1.33270917]
[1737313494846,0.15116943,105030.0,105020.0,1.33270917]
[1737313496536,0.15116943,105030.0,105020.0,1.41935487]
[1737313496747,0.15116943,105030.0,105020.0,1.49735487]
[1737313496956,0.15116943,105030.0,105020.0,1.45620917]
[1737313498963,0.15116943,105030.0,105020.0,1.32799018]
[1737313500560,0.15116943,105030.0,105020.0,1.20449018]
[1737313501430,0.15116943,105030.0,105020.0,1.37746616]
[1737313502521,0.15116943,105030.0,105020.0,1.29224438]
[1737313503341,0.15116943,105030.0,105020.0,1.42072327]
[1737313503969,0.40131024,105030.0,105020.0,1.4111543]
[1737313504174,0.29303793,105030.0,105020.0,1.2611543]
[1737313504631,0.22889223,105030.0,105020.0,1.26123692]
[1737313504836,0.18289223,105030.0,105020.0,1.30238262]
[1737313505040,0.15720943,105030.0,105020.0,1.49352832]
[1737313505233,0.15720943,105030.0,105020.0,1.45238262]
[1737313505450,0.15720943,105030.0,105020.0,1.40190744]
[1737313505583,0.00779142,105030.0,105020.0,1.28276174]
[1737313505790,0.00779142,105030.0,105020.0,1.28267912]
[1737313506209,0.00175142,105030.0,105020.0,1.28267912]
[1737313506435,0.00779142,105030.0,105020.0,1.28267912]
[1737313506585,0.00779142,105030.0,105020.0,1.4111543]
[1737313506969,0.23493223,105030.0,105020.0,1.4111543]
[1737313507173,0.25793223,105030.0,105020.0,1.2611543]
[1737313507813,0.25793223,105030.0,105020.0,1.04703262]
[1737313508010,0.25793223,105030.0,105020.0,1.04711464]
[1737313508440,0.2727665,105030.0,105020.0,1.04711464]
[1737313508649,0.2727665,105030.0,105020.0,0.96145189]
[1737313509744,0.02262569,105030.0,105020.0,0.55831125]
[1737313509958,0.01658569,105030.0,105020.0,0.55831125]
[1737313511030,0.00175142,105030.0,105020.0,0.55831125]
[1737313511229,0.00175142,105030.0,105020.0,0.94542887]
[1737313511588,0.00175142,105030.0,105020.0,0.98657457]
[1737313511784,0.00175142,105030.0,105020.0,0.94542887]
[1737313512190,0.00175142,105030.0,105020.0,1.26151978]
[1737313512874,0.00175142,105030.0,105020.0,1.13303125]
[1737313513048,0.18249223,105030.0,105020.0,1.13303125]
[1737313514122,0.18249223,105030.0,105020.0,0.96172732]
[1737313514557,0.72199223,105030.0,105020.0,0.96172732]
[1737313515714,0.72199223,105030.0,105020.0,0.64563641]
[1737313517745,0.72199223,105030.0,105020.0,0.96174319]
[1737313518925,0.64049223,105030.0,105020.0,0.96174319]
[1737313519621,0.64049223,105030.0,105020.0,1.13304712]
[1737313519821,0.54125142,105030.0,105020.0,1.30529282]
[1737313520022,0.54729142,105030.0,105020.0,1.30529282]
[1737313520221,0.54729142,105030.0,105020.0,1.45529282]
[1737313520429,0.15720943,105030.0,105020.0,1.45529282]
[1737313521096,0.15720943,105030.0,105020.0,1.58378135]
[1737313521477,0.15720943,105030.0,105020.0,1.58369933]
[1737313522163,0.15720943,105030.0,105020.0,1.45522044]
[1737313522352,0.15720943,105030.0,105020.0,1.49636614]
[1737313522548,0.15720943,105030.0,105020.0,1.45522044]
[1737313523081,0.15720943,105030.0,105020.0,1.49636614]
[1737313523466,0.00175142,105030.0,105020.0,1.49636614]
[1737313523695,0.00643332,105030.0,105020.0,1.49636614]
[1737313524305,0.15585133,105030.0,105020.0,1.49636614]
[1737313524485,0.00643332,105030.0,105020.0,1.49636614]
[1737313524894,0.00643332,105030.0,105020.0,1.68158792]
[1737313525667,0.00643332,105030.0,105020.0,1.78082873]
[1737313525905,0.00643332,105030.0,105020.0,1.60785275]
[1737313526165,3.4e-07,105030.0,105020.0,1.60843474]
[1737313526363,0.00089901,105040.0,105030.0,0.47631]
[1737313526583,0.00139797,105040.0,105030.0,0.90537081]
[1737313526821,0.00139797,105040.0,105030.0,0.98766221]
[1737313527031,0.00139797,105040.0,105030.0,1.03070597]
[1737313527301,0.00139797,105040.0,105030.0,1.03666132]
[1737313527987,0.00139797,105040.0,105030.0,1.73154434]
[1737313529678,0.00139797,105040.0,105030.0,1.7409094]
[1737313531039,0.00139797,105040.0,105030.0,1.61858974]
[1737313538374,0.00139797,105040.0,105030.0,1.61948875]
[1737313538900,9.7e-07,105040.0,105030.0,1.61948875]
[1737313539759,0.08883881,105070.0,105050.0,0.2266]
[1737313539964,0.08898841,105070.0,105060.0,0.30880228]
[1737313540176,0.00104841,105070.0,105060.0,0.65740816]
[1737313540798,0.00104841,105070.0,105060.0,0.70024816]
[1737313541598,0.00104841,105070.0,105060.0,0.77684816]
[1737313541804,0.00104841,105070.0,105060.0,0.78288681]
[1737313545543,0.00104841,105070.0,105060.0,0.9916897]
[1737313545767,0.00104841,105070.0,105060.0,1.0391897]
[1737313546593,0.00104841,105070.0,105060.0,1.05859911]
[1737313546798,0.00104841,105070.0,105060.0,1.65583858]
[1737313547012,0.00104841,105070.0,105060.0,1.97041495]
[1737313547184,0.000428,105080.0,105070.0,0.345174]
[1737313547402,0.000428,105080.0,105070.0,0.73755158]
[1737313548493,0.000428,105080.0,105070.0,0.74359073]
[1737313551974,0.000428,105080.0,105070.0,0.74350693]
[1737313552867,0.000428,105080.0,105070.0,0.76304371]
[1737313554454,0.000428,105080.0,105070.0,0.72194153]
[1737313555018,0.000428,105080.0,105070.0,0.76304371]
[1737313558271,0.000428,105080.0,105070.0,0.72194153]
[1737313560425,0.000428,105080.0,105070.0,0.76304371]
[1737313560647,0.000428,105080.0,105070.0,0.58083935]
[1737313560867,0.077528,105080.0,105070.0,0.58083935]
[1737313561078,0.077528,105080.0,105070.0,0.66304371]
[1737313561478,0.077528,105080.0,105070.0,0.62194153]
[1737313561627,0.077528,105080.0,105070.0,0.62202445]
[1737313561849,0.000428,105080.0,105070.0,0.62202445]
[1737313562673,0.000428,105080.0,105070.0,0.66312663]
[1737313562890,0.000428,105080.0,105070.0,0.62202445]
[1737313563228,0.000428,105080.0,105070.0,0.62194153]
[1737313564977,0.000428,105080.0,105070.0,0.64348058]
[1737313565175,0.077528,105080.0,105070.0,0.72861335]
[1737313567523,0.077528,105080.0,105070.0,1.17130317]
[1737313569763,0.20295682,105090.0,105070.0,1.24676902]
[1737313569942,0.20295682,105090.0,105080.0,0.24611653]
[1737313570173,0.20295682,105090.0,105080.0,0.574845]
[1737313571453,0.20295682,105090.0,105080.0,0.58088253]
[1737313572046,0.19691682,105090.0,105080.0,0.64352376]
[1737313572268,0.15635682,105090.0,105080.0,0.64352376]
[1737313573648,0.15635682,105090.0,105080.0,0.72865653]
[1737313576388,0.15635682,105090.0,105080.0,0.6660153]
[1737313577173,0.15635682,105090.0,105080.0,0.6662153]
[1737313577618,0.15635682,105090.0,105080.0,0.67587934]
[1737313578427,0.15031682,105090.0,105080.0,0.67587934]
[1737313578558,0.15031682,105090.0,105080.0,0.73852057]
[1737313578774,0.00089881,105090.0,105080.0,0.73852057]
[1737313580303,0.00089881,105090.0,105080.0,1.18198327]
[1737313581177,0.00089881,105090.0,105080.0,1.18190109]
[1737313581910,0.00089881,105090.0,105080.0,1.56584075]
[1737313582308,0.00089881,105090.0,105080.0,1.64764075]
[1737313583160,0.00089881,105090.0,105080.0,1.56250798]
[1737313583912,0.00089881,105090.0,105080.0,1.58145654]
[1737313585353,0.00089881,105090.0,105080.0,1.45347665]
[1737313586757,0.00089881,105090.0,105080.0,1.47303912]
[1737313586958,0.00089881,105090.0,105080.0,1.43283565]
[1737313587931,0.00089881,105090.0,105080.0,1.2621958]
[1737313589908,0.00089881,105090.0,105080.0,1.51865238]
[1737313591307,0.00089881,105090.0,105080.0,1.55975423]
[1737313591485,0.00089881,105090.0,105080.0,1.30535257]
[1737313592562,0.00089881,105090.0,105080.0,1.34645442]
[1737313598147,0.00089881,105090.0,105080.0,1.26425072]
[1737313598287,0.00089881,105090.0,105080.0,1.34645442]
[1737313598875,0.00089881,105090.0,105080.0,1.34590682]
[1737313609928,0.00089881,105090.0,105080.0,1.44590682]
[1737313613043,0.00089881,105090.0,105080.0,1.82468306]
[1737313613857,0.00089881,105090.0,105080.0,1.44590682]
[1737313619315,0.00089881,105090.0,105080.0,1.36370312]
[1737313619552,0.00089881,105090.0,105080.0,1.44590682]
[1737313620420,0.00089881,105090.0,105080.0,1.82468306]
[1737313624295,0.00089881,105090.0,105080.0,1.86578491]
[1737313624495,0.00089881,105090.0,105080.0,1.82468306]
[1737313625527,0.00089881,105090.0,105080.0,1.56822648]
[1737313628806,0.00089881,105090.0,105080.0,1.825028]
[1737313629613,0.00089881,105090.0,105080.0,1.44625176]
[1737313640316,0.00089881,105090.0,105080.0,1.18224806]
[1737313640519,0.00089881,105090.0,105080.0,1.22334991]
[1737313640720,0.00089881,105090.0,105080.0,1.26445176]
[1737313646905,0.00089881,105090.0,105080.0,1.18224806]
[1737313647120,0.00089881,105090.0,105080.0,1.26445176]
[1737313651248,0.00089881,105090.0,105080.0,1.22334991]
[1737313651434,0.00089881,105090.0,105080.0,1.26445176]
[1737313651828,0.00089881,105090.0,105080.0,1.2455032]
[1737313652238,0.22881682,105090.0,105080.0,1.1632995]
[1737313652417,0.22881682,105090.0,105080.0,1.0138471]
[1737313652806,0.12669881,105090.0,105080.0,1.0138471]
[1737313653005,0.12669881,105090.0,105080.0,1.05494895]
[1737313653814,0.12669881,105090.0,105080.0,1.5476952]
[1737313655704,0.22593962,105090.0,105080.0,1.5476952]
[1737313655893,0.22593962,105090.0,105080.0,1.33357099]
[1737313657822,0.22593962,105090.0,105080.0,1.16227163]
[1737313660004,0.22593962,105090.0,105080.0,0.7183143]
[1737313661763,0.23193962,105090.0,105080.0,0.7183143]
[1737313663166,0.22593962,105090.0,105080.0,0.7183143]
[1737313663361,0.23193962,105090.0,105080.0,0.7183143]
[1737313665773,0.23193962,105090.0,105080.0,0.84678882]
[1737313667077,0.23193962,105090.0,105080.0,0.7183143]
[1737313667931,0.23193962,105090.0,105080.0,0.67721245]
[1737313674578,0.23193962,105090.0,105080.0,0.59156277]
[1737313677221,0.23193962,105090.0,105080.0,0.44156277]
[1737313680269,0.23193962,105090.0,105080.0,0.44166445]
[1737313681196,0.23193962,105090.0,105080.0,0.5212571]
[1737313681637,0.23193962,105090.0,105080.0,0.52731121]
[1737313682178,0.23193962,105090.0,105080.0,0.44166153]
[1737313685256,0.23193962,105090.0,105080.0,0.52731121]
[1737313685886,0.15343962,105090.0,105080.0,0.52731121]
[1737313686092,0.10613962,105090.0,105080.0,0.52731121]
[1737313687049,0.00689881,105090.0,105080.0,0.71841306]
[1737313687267,0.15031682,105090.0,105080.0,0.84261491]
[1737313687473,0.00689881,105090.0,105080.0,0.84261491]
[1737313687679,0.00089881,105090.0,105080.0,0.84261491]
[1737313688072,0.00089881,105090.0,105080.0,0.80151306]
[1737313688484,0.00089881,105090.0,105080.0,1.45802991]
[1737313689453,0.15631682,105090.0,105080.0,1.41692806]
[1737313689658,0.00689881,105090.0,105080.0,1.41692806]
[1737313690256,0.00089881,105090.0,105080.0,1.41692806]
[1737313690560,0.00689881,105090.0,105080.0,1.41692806]
[1737313691212,0.00689881,105090.0,105080.0,1.45802991]
[1737313692089,0.00689881,105090.0,105080.0,1.28673055]
[1737313692418,0.15031682,105090.0,105080.0,1.28673055]
[1737313692622,0.00089881,105090.0,105080.0,1.43563055]
[1737313692849,0.15031682,105090.0,105080.0,1.43563055]
[1737313693702,0.00089881,105090.0,105080.0,1.43563055]
[1737313694533,0.00089881,105090.0,105080.0,1.69243207]
[1737313695150,0.15031682,105090.0,105080.0,1.69243207]
[1737313695348,0.00089881,105090.0,105080.0,1.69243207]
[1737313695986,0.00089881,105090.0,105080.0,1.47830786]
[1737313700508,0.00089881,105090.0,105080.0,1.49746426]
[1737313702270,0.00089881,105090.0,105080.0,1.49728626]
[1737313704985,0.00089881,105090.0,105080.0,1.49728626]
[1737313713980,8.1e-07,105090.0,105080.0,1.49728626]
[1737313717127,8.1e-07,105090.0,105080.0,1.41508256]
[1737313717352,8.1e-07,105090.0,105080.0,1.49728626]
[1737313730070,0.14031783,105100.0,105090.0,0.285462]
[1737313730275,0.14031783,105100.0,105090.0,0.61337385]
[1737313730971,0.14031783,105100.0,105090.0,0.61932641]
[1737313731969,0.14031783,105100.0,105090.0,1.36270437]
[1737313732782,0.14031783,105100.0,105090.0,1.19168424]
[1737313734082,0.14031783,105100.0,105090.0,1.44848576]
[1737313734908,0.14031783,105100.0,105090.0,1.23471059]
[1737313736370,0.22664081,105100.0,105090.0,1.19360874]
[1737313736976,0.22664081,105100.0,105090.0,1.34360874]
[1737313737878,0.22706891,105100.0,105090.0,1.34372721]
[1737313738287,0.1278281,105100.0,105090.0,1.55604631]
[1737313738512,0.1278281,105100.0,105090.0,1.72725382]
[1737313739091,0.1278281,105100.0,105090.0,1.68615197]
[1737313739949,0.1338281,105100.0,105090.0,1.68615197]
[1737313746290,0.1338281,105100.0,105090.0,1.30093507]
[1737313746488,0.1338281,105100.0,105090.0,1.3008166]
[1737313749580,0.1338281,105100.0,105090.0,1.31045824]
[1737313750170,0.1338281,105100.0,105090.0,1.31135704]
[1737313751309,0.1338281,105100.0,105090.0,1.31123857]
[1737313753320,0.1278281,105100.0,105090.0,1.31123857]
[1737313753497,0.1338281,105100.0,105090.0,1.31123857]
[1737313754214,0.1278281,105100.0,105090.0,1.31123857]
[1737313754436,0.1338281,105100.0,105090.0,1.31123857]
[1737313754641,0.1338281,105100.0,105090.0,1.16123857]
[1737313754845,0.1338281,105100.0,105090.0,0.84549591]
[1737313755626,0.1338281,105100.0,105090.0,0.71709028]
[1737313758621,0.1338281,105100.0,105090.0,0.84549591]
[1737313759160,0.1338281,105100.0,105090.0,0.84561438]
[1737313760339,0.1338281,105100.0,105090.0,0.84549591]
[1737313760768,0.1338281,105100.0,105090.0,0.71709028]
[1737313760978,0.23306891,105100.0,105090.0,0.71709028]
[1737313762500,0.23306891,105100.0,105090.0,0.63148653]
[1737313763940,0.23306891,105100.0,105090.0,0.71709028]
[1737313765318,0.23306891,105100.0,105090.0,0.71720875]
[1737313766411,0.23306891,105100.0,105090.0,0.86709028]
[1737313766831,0.23306891,105100.0,105090.0,0.78148653]
[1737313767027,0.15086891,105100.0,105090.0,0.78148653]
[1737313767248,0.14486891,105100.0,105090.0,0.78148653]
[1737313767441,0.10566891,105100.0,105090.0,0.78148653]
[1737313767854,0.10566891,105100.0,105090.0,0.86709028]
[1737313768000,0.10566891,105100.0,105090.0,0.86720875]
[1737313776475,0.10566891,105100.0,105090.0,0.99561438]
[1737313777618,0.10566891,105100.0,105090.0,1.31153464]
[1737313778444,0.10566891,105100.0,105090.0,1.31297464]
[1737313780772,0.10566891,105100.0,105090.0,1.48418215]
[1737313783544,0.09966891,105100.0,105090.0,1.48418215]
[1737313783847,0.10566891,105100.0,105090.0,1.69819154]
[1737313784675,0.10566891,105100.0,105090.0,1.48418215]
[1737313786095,0.10566891,105100.0,105090.0,1.49608619]
[1737313786877,0.12131891,105100.0,105090.0,1.49608619]
[1737313789794,0.12141379,105100.0,105090.0,1.49608619]
[1737313790195,0.00609488,105100.0,105090.0,1.49608619]
[1737313791313,0.00609488,105100.0,105090.0,1.32487868]
[1737313791874,0.00609488,105100.0,105090.0,1.32476021]
[1737313793307,0.006,105100.0,105090.0,1.32476021]
[1737313796173,0.48176352,105110.0,105100.0,0.09524188]
[1737313796311,0.58684573,105110.0,105100.0,0.38203188]
[1737313796513,0.49170773,105110.0,105100.0,0.42487188]
[1737313796932,0.48570773,105110.0,105100.0,0.42487188]
[1737313797138,0.49170773,105110.0,105100.0,0.45225165]
[1737313798452,0.58684573,105110.0,105100.0,0.45225165]
[1737313798873,0.46870773,105110.0,105100.0,0.45225165]
[1737313799730,0.46870773,105110.0,105100.0,0.45215677]
[1737313800356,0.46870773,105110.0,105100.0,0.4619344]
[1737313801024,0.46870773,105110.0,105100.0,0.45215677]
[1737313801815,0.56384573,105110.0,105100.0,0.45215677]
[1737313802008,0.60494758,105110.0,105100.0,0.45215677]
[1737313802206,0.62794758,105110.0,105100.0,0.35700977]
[1737313804335,0.75574342,105110.0,105100.0,0.35700977]
[1737313804907,0.75574342,105110.0,105100.0,0.34510573]
[1737313805108,1.13913093,105110.0,105100.0,0.34510573]
[1737313808305,1.09802908,105110.0,105100.0,0.34510573]
[1737313808505,1.13913093,105110.0,105100.0,0.34510573]
[1737313808710,1.13913093,105110.0,105100.0,0.44025273]
[1737313808912,1.04399293,105110.0,105100.0,0.44025273]
[1737313809067,0.87489108,105110.0,105100.0,0.44025273]
[1737313809277,0.70189108,105110.0,105100.0,0.44115153]
[1737313810390,0.18470773,105110.0,105100.0,0.44115153]
[1737313810615,0.19070773,105110.0,105100.0,0.44115153]
[1737313812395,0.10551051,105110.0,105100.0,0.44115153]
[1737313822733,0.10551051,105110.0,105100.0,0.44127]
[1737313825130,0.10551051,105110.0,105100.0,0.48237185]
[1737313826197,0.10551051,105110.0,105100.0,0.44127]
[1737313826598,0.10551051,105110.0,105100.0,0.48237185]
[1737313827545,0.10551051,105110.0,105100.0,0.44127]
[1737313828102,0.10551051,105110.0,105100.0,0.48237185]
[1737313828707,0.10551051,105110.0,105100.0,0.56007185]
[1737313828916,0.10551051,105110.0,105100.0,0.569434]
[1737313832397,0.09951051,105110.0,105100.0,0.569434]
[1737313832619,0.10547051,105110.0,105100.0,0.569434]
[1737313833095,0.10547051,105110.0,105100.0,0.52833215]
[1737313833537,0.10547051,105110.0,105100.0,0.51897]
[1737313836488,0.10547051,105110.0,105100.0,0.56007185]
[1737313836668,0.10547051,105110.0,105100.0,0.51897]
[1737313837238,0.00596,105110.0,105100.0,0.709258]
[1737313838651,0.00596,105110.0,105100.0,0.70913953]
[1737313839362,0.00596,105110.0,105100.0,0.79134323]
[1737313839569,0.00596,105110.0,105100.0,0.75024138]
[1737313840257,0.00596,105110.0,105100.0,0.70913953]
[1737313840458,0.33122544,105120.0,105110.0,0.171538]
[1737313840459,0.17389922,105120.0,105110.0,0.171538]
[1737313840605,0.27914987,105120.0,105110.0,0.501138]
[1737313840808,0.37427887,105120.0,105110.0,0.501138]
[1737313841213,0.25018987,105120.0,105110.0,0.501138]
[1737313841459,0.00690906,105120.0,105110.0,0.54223985]
[1737313841817,0.00690906,105120.0,105110.0,0.501138]
[1737313842457,0.00690906,105120.0,105110.0,0.55771558]
[1737313842630,0.00094906,105120.0,105110.0,0.55771558]
[1737313842835,0.00690906,105120.0,105110.0,0.55771558]
[1737313844553,0.86740906,105120.0,105110.0,0.70771558]
[1737313847630,0.86740906,105120.0,105110.0,0.70783405]
[1737313848313,0.86740906,105120.0,105110.0,0.6667322]
[1737313848532,0.86740906,105120.0,105110.0,0.7130322]
[1737313851141,0.86740906,105120.0,105110.0,0.72250412]
[1737313852665,0.00094906,105120.0,105110.0,0.80470782]
[1737313852886,6e-08,105120.0,105110.0,0.80470782]
[1737313853304,6e-08,105120.0,105110.0,0.72250412]
[1737313853480,6e-08,105120.0,105110.0,0.76360597]
[1737313854444,6e-08,105120.0,105110.0,1.33526425]
[1737313854924,6e-08,105120.0,105110.0,1.33514578]
[1737313855578,6e-08,105120.0,105110.0,1.33261783]
[1737313856086,6e-08,105120.0,105110.0,1.33351684]
[1737313856265,0.00042816,105120.0,105110.0,1.29241499]
[1737313856419,0.00042816,105120.0,105110.0,1.59031836]
[1737313857057,0.00042816,105120.0,105110.0,1.54921651]
[1737313857390,0.00042816,105120.0,105110.0,1.59031836]
[1737313857506,0.00042816,105120.0,105110.0,1.50396577]
[1737313858212,0.00042816,105120.0,105110.0,1.52311732]
[1737313860339,0.00042816,105120.0,105110.0,1.65086405]
[1737313864585,0.14121684,105130.0,105110.0,1.55572605]
[1737313864772,0.14121684,105130.0,105120.0,0.2566327]
[1737313864944,0.14121684,105130.0,105120.0,0.5862027]
[1737313865900,0.14121684,105130.0,105120.0,0.60182082]
[1737313868243,0.14121684,105130.0,105120.0,0.60224898]
[1737313868379,0.14121684,105130.0,105120.0,0.64894898]
[1737313868823,0.00089901,105130.0,105120.0,0.64894898]
[1737313869522,0.14121684,105130.0,105120.0,0.64894898]
[1737313871037,0.14121684,105130.0,105120.0,0.64937714]
[1737313874218,0.00089901,105130.0,105120.0,0.64937714]
[1737313874424,0.14121684,105130.0,105120.0,0.64937714]
[1737313874831,0.14121684,105130.0,105120.0,0.64852082]
[1737313876844,0.14121684,105130.0,105120.0,0.64837843]
[1737313879636,0.14121684,105130.0,105120.0,0.64880659]
[1737313879890,0.14021684,105130.0,105120.0,0.63878461]
[1737313880097,0.14021684,105130.0,105120.0,0.92416561]
[1737313880440,0.14021684,105130.0,105120.0,0.92506441]
[1737313880659,0.14064484,105130.0,105120.0,0.92506441]
[1737313882115,0.14064484,105130.0,105120.0,1.05281114]
[1737313883024,0.14064484,105130.0,105120.0,1.36706334]
[1737313883348,0.14064484,105130.0,105120.0,1.36663518]
[1737313885501,0.14064484,105130.0,105120.0,1.53708411]
[1737313887413,0.14064484,105130.0,105120.0,1.75025583]
[1737313888014,0.0004281,105140.0,105130.0,0.15]
[1737313888302,0.0004281,105140.0,105130.0,0.61576185]
[1737313888875,0.0004281,105140.0,105130.0,0.63136717]
[1737313893442,0.0004281,105140.0,105130.0,0.71647419]
[1737313896389,0.0004281,105140.0,105130.0,0.72602799]
[1737313896809,0.0004281,105140.0,105130.0,0.85377472]
[1737313897859,0.0004281,105140.0,105130.0,1.1687935]
[1737313899005,0.0004281,105140.0,105130.0,1.16866391]
[1737313900068,0.0004281,105140.0,105130.0,1.33943081]
[1737313904788,0.0004281,105140.0,105130.0,1.34032961]
[1737313910976,0.0004281,105140.0,105130.0,1.29922776]
[1737313911471,0.0004281,105140.0,105130.0,1.34032961]
[1737313911817,0.0004281,105140.0,105130.0,1.46602961]
[1737313911997,0.13691706,105160.0,105150.0,0.370802]
[1737313912259,0.07986006,105160.0,105150.0,0.84063466]
[1737313912440,0.04232053,105160.0,105150.0,0.84063466]
[1737313912672,0.04232053,105160.0,105150.0,0.88173651]
[1737313912887,0.03110588,105160.0,105150.0,1.05279777]
[1737313913106,0.30732551,105170.0,105160.0,0.50075241]
[1737313913315,0.28840532,105170.0,105160.0,0.76613877]
[1737313913520,0.23804975,105170.0,105160.0,1.05275877]
[1737313913726,0.25601978,105180.0,105170.0,0.3268]
[1737313913936,0.00127818,105200.0,105190.0,0.345066]
[1737313914054,0.00137295,105200.0,105190.0,0.44430681]
[1737313914254,0.00137295,105200.0,105190.0,0.78411177]
[1737313914459,0.00052257,105200.0,105190.0,0.88584992]
[1737313914868,0.00052257,105200.0,105190.0,0.86611396]
[1737313915091,0.00052257,105200.0,105190.0,1.19674139]
[1737313915903,0.00052257,105200.0,105190.0,1.40868924]
[1737313916504,0.0052114,105200.0,105190.0,1.40855632]
[1737313916922,0.0052114,105200.0,105190.0,1.57797305]
[1737313917422,0.0052114,105200.0,105190.0,1.59748842]
[1737313918119,0.01651823,105210.0,105200.0,0.095057]
[1737313918344,0.01651823,105210.0,105200.0,0.42535735]
[1737313918545,0.01651823,105210.0,105200.0,0.424407]
[1737313919016,0.01651823,105210.0,105200.0,0.574407]
[1737313919221,0.01651823,105210.0,105200.0,0.58035956]
[1737313919608,0.01651823,105210.0,105200.0,0.6428273]
[1737313920164,0.01651823,105210.0,105200.0,0.58035956]
[1737313921772,0.01651823,105210.0,105200.0,0.6428273]
[1737313922994,0.01651823,105210.0,105200.0,0.77321593]
[1737313924145,0.01651823,105210.0,105200.0,0.85785013]
[1737313924718,0.01651823,105210.0,105200.0,0.88119322]
[1737313925148,0.01651823,105210.0,105200.0,0.89071639]
[1737313926379,0.01651823,105210.0,105200.0,1.68736288]
[1737313926581,0.0004881,105220.0,105210.0,0.15]
[1737313926788,0.0004881,105220.0,105210.0,0.28883734]
[1737313927022,0.0004881,105220.0,105210.0,0.574377]
[1737313927427,0.000428,105230.0,105220.0,0.095038]
[1737313927538,0.000428,105230.0,105220.0,0.381498]
[1737313927748,0.000428,105230.0,105220.0,0.424338]
[1737313928597,0.000428,105230.0,105220.0,0.43029056]
[1737313929577,0.40556555,105230.0,105220.0,0.33525256]
[1737313929805,0.55556555,105230.0,105220.0,0.33525256]
[1737313930751,0.55556555,105230.0,105220.0,0.23525256]
[1737313930977,0.49309781,105230.0,105220.0,0.23525256]
[1737313931861,0.49309781,105230.0,105220.0,0.2293]
[1737313933263,0.49905781,105230.0,105220.0,0.2293]
[1737313934418,0.56152555,105230.0,105220.0,0.2293]
[1737313935927,0.94165855,105230.0,105210.0,0.285128]
[1737313937831,0.94165855,105230.0,105210.0,0.29107375]
[1737313938196,0.00884757,105220.0,105210.0,0.29107375]
[1737313938711,0.00884757,105220.0,105210.0,0.30625375]
[1737313940523,0.00884757,105220.0,105210.0,0.3157669]
[1737313940930,0.00884757,105220.0,105210.0,0.6008969]
[1737313941831,0.08534757,105220.0,105210.0,0.6008969]
[1737313942678,0.09072598,105220.0,105210.0,0.6008969]
[1737313944066,0.0765,105220.0,105210.0,0.6008969]
[1737313944283,0.08246,105220.0,105210.0,0.6008969]
[1737313946494,0.08246,105220.0,105210.0,0.60102982]
[1737313946692,0.0765,105220.0,105210.0,0.60102982]
[1737313946882,0.08246,105220.0,105210.0,0.60102982]
[1737313947813,0.00596,105220.0,105210.0,0.60102982]
[1737313948674,0.122828,105230.0,105220.0,0.095038]
[1737313948848,0.128788,105230.0,105220.0,0.110218]
[1737313949434,0.082888,105230.0,105220.0,0.110218]
[1737313949829,0.082888,105230.0,105220.0,0.1256769]
[1737313951526,0.082888,105230.0,105220.0,0.4107969]
[1737313951906,0.082888,105230.0,105220.0,0.41169486]
[1737313952104,0.082888,105230.0,105220.0,0.41182778]
[1737313953746,0.082888,105230.0,105220.0,0.41169486]
[1737313954180,0.076928,105230.0,105220.0,0.41169486]
[1737313954384,0.082888,105230.0,105220.0,0.41169486]
[1737313955495,0.076928,105230.0,105220.0,0.42129152]
[1737313955710,0.082888,105230.0,105220.0,0.42129152]
[1737313956774,0.082888,105230.0,105220.0,0.50592572]
[1737313957733,0.082888,105230.0,105220.0,1.11573306]
[1737313958889,0.082888,105230.0,105220.0,1.11607233]
[1737313962113,0.082888,105230.0,105220.0,1.24369283]
[1737313962327,0.12389437,105230.0,105220.0,1.24369283]
[1737313962547,0.082888,105230.0,105220.0,1.24369283]
[1737313962753,0.006388,105230.0,105220.0,1.24369283]
[1737313962995,0.006388,105230.0,105220.0,1.39369283]
[1737313963228,0.000428,105230.0,105220.0,1.39369283]
[1737313963402,0.006388,105230.0,105220.0,1.39369283]
[1737313963759,0.000428,105230.0,105220.0,1.39369283]
[1737313964395,0.000428,105230.0,105220.0,1.3070787]
[1737313964843,0.000428,105230.0,105220.0,1.26607233]
[1737313965220,0.000428,105230.0,105220.0,1.37644154]
[1737313965443,0.000428,105230.0,105220.0,1.20702481]
[1737313965637,0.000428,105230.0,105220.0,1.28245773]
[1737313966303,0.000428,105230.0,105220.0,1.21998852]
[1737313966506,0.000428,105230.0,105220.0,1.70271006]
[1737313967334,0.000428,105230.0,105220.0,1.26307299]
[1737313968270,0.000428,105230.0,105220.0,1.42478301]
[1737313969469,0.000428,105230.0,105220.0,1.63735033]
[1737313970347,0.000428,105230.0,105220.0,1.09740799]
[1737313971231,0.000428,105230.0,105220.0,1.39497964]
[1737313971928,0.000428,105230.0,105220.0,1.39484672]
[1737313974721,0.000428,105230.0,105220.0,1.39497964]
[1737313977521,0.000428,105230.0,105220.0,1.77339553]
[1737313977753,0.000428,105230.0,105220.0,1.87339553]
[1737313978613,0.000428,105230.0,105220.0,1.66085895]
[1737313978816,0.000428,105230.0,105220.0,1.74585033]
[1737313979379,0.000428,105230.0,105220.0,1.74571741]
[1737313980048,0.000428,105230.0,105220.0,1.53315009]
[1737313981594,0.000428,105240.0,105230.0,0.345029]
[1737313981796,0.00057742,105240.0,105230.0,0.80700902]
[1737313983206,0.00057742,105240.0,105230.0,0.82246792]
[1737313983410,0.00057742,105240.0,105230.0,1.39056384]
[1737313984606,0.00057742,105240.0,105230.0,1.60275665]
[1737313985829,0.00057742,105240.0,105230.0,1.34807696]
[1737313986200,0.00057742,105240.0,105230.0,1.34822419]